bitfinex-derivatives/quotes_ETHF0:USTF0_20250210
["timestamp","ask_amount","ask_price","bid_price","bid_amount"]
[1739198747392,3.2078,2655.0,2654.1,40.8]
[1739198747393,0.00565643,2654.8,2654.1,40.8]
[1739198747893,0.00565643,2654.8,2654.0,0.00565643]
[1739198747894,3.2078,2654.6,2654.0,0.00565643]
[1739198748089,0.5748,2654.5,2654.0,0.00565643]
[1739198748287,3.2078,2654.3,2654.0,0.00565643]
[1739198748692,5.03729579,2654.2,2653.5,3.2078]
[1739198748888,4.28395579,2654.2,2653.5,3.2078]
[1739198749394,4.04509019,2654.3,2653.5,3.2078]
[1739198750092,4.04509019,2654.3,2653.6,0.00565643]
[1739198750394,3.2078,2654.0,2653.6,0.00565643]
[1739198750896,4.18743063,2653.9,2653.6,0.00565643]
[1739198751198,3.2078,2653.7,2652.7,3.2078]
[1739198751392,4.18743063,2653.9,2652.4,3.2078]
[1739198751393,3.2078,2653.4,2652.4,3.2078]
[1739198751588,0.5849,2653.3,2652.4,3.2078]
[1739198752386,0.5849,2653.3,2652.6,0.00565643]
[1739198752387,4.17866714,2653.2,2652.6,0.00565643]
[1739198752596,0.00565643,2653.1,2652.6,0.00565643]
[1739198754286,0.00565643,2653.1,2652.7,3.2078]
[1739198755189,0.00565643,2653.1,2652.8,40.8]
[1739198755794,7.22845299,2653.0,2652.6,0.00565643]
[1739198756490,0.00565643,2653.1,2652.6,0.00565643]
[1739198757292,4.32744933,2653.0,2652.6,0.00565643]
[1739198758095,7.53524933,2653.0,2652.6,0.00565643]
[1739198758596,0.5689,2652.9,2652.6,0.00565643]
[1739198758993,3.92623444,2652.8,2652.6,0.00565643]
[1739198759196,7.13403444,2652.8,2652.6,0.00565643]
[1739198759703,7.88777444,2652.8,2652.6,0.00565643]
[1739198759996,13.72093444,2652.8,2651.5,3.2078]
[1739198760190,3.2078,2652.5,2651.5,3.2078]
[1739198760397,7.72093444,2652.8,2651.8,3.2078]
[1739198760592,3.7947,2652.8,2651.8,3.2078]
[1739198760793,3.98308006,2652.6,2651.8,3.2078]
[1739198760993,3.98308006,2652.7,2651.8,3.2078]
[1739198761194,3.7947,2652.8,2651.9,0.00377094]
[1739198761394,3.2078,2652.2,2651.9,0.00377094]
[1739198761792,3.2078,2652.6,2651.9,0.00377094]
[1739198761992,3.2078,2652.3,2651.9,0.00377094]
[1739198762501,4.34808959,2652.2,2651.9,0.00377094]
[1739198762698,4.95048959,2652.2,2651.9,0.00377094]
[1739198763092,4.95048959,2652.2,2650.5,3.52706794]
[1739198763093,3.96175,2652.0,2650.8,3.2078]
[1739198763291,3.2078,2651.7,2650.8,3.2078]
[1739198763693,3.98714473,2651.6,2650.8,3.2078]
[1739198764302,0.00565643,2651.5,2651.1,3.2078]
[1739198764499,0.6024,2652.2,2651.4,3.2078]
[1739198764702,0.6024,2652.2,2651.7,3.2078]
[1739198764893,4.14179724,2652.1,2651.4,5.1668]
[1739198765203,4.14179724,2652.1,2651.1,3.2078]
[1739198765204,3.96176,2652.0,2651.1,3.2078]
[1739198765503,0.6024,2652.2,2651.4,3.2078]
[1739198765807,0.00565643,2651.8,2651.7,3.2078]
[1739198766502,0.00565643,2651.8,2651.7,44.0078]
[1739198766691,0.00565643,2651.8,2651.7,40.8]
[1739198766896,0.00565643,2651.8,2651.3,0.00565643]
[1739198767091,4.32104286,2651.8,2651.3,0.00565643]
[1739198767496,4.32104286,2651.8,2651.3,3.21345643]
[1739198767693,0.00565643,2651.8,2651.6,3.2078]
[1739198767897,0.00565643,2651.8,2651.3,3.21345643]
[1739198768094,0.00565643,2651.8,2651.6,3.2078]
[1739198769394,0.00188549,2651.8,2651.6,9.96186]
[1739198769593,1.1975,2653.1,2652.0,0.75395]
[1739198769795,1.1975,2653.1,2652.3,3.2078]
[1739198770002,5.18051715,2653.1,2652.3,3.2078]
[1739198770193,3.98301715,2653.1,2652.4,40.8]
[1739198770397,0.5881,2653.5,2652.7,3.2078]
[1739198770596,3.2078,2653.6,2652.7,3.2078]
[1739198770794,0.00565643,2653.0,2652.7,3.2078]
[1739198770993,0.00565643,2653.0,2652.9,0.00565643]
[1739198772705,0.00565643,2653.0,2652.9,0.61135643]
[1739198773403,0.00565643,2653.0,2652.9,6.61135643]
[1739198773613,0.5775,2654.3,2653.0,0.75365]
[1739198773804,0.5775,2654.3,2652.9,10.12214706]
[1739198773805,0.5775,2654.3,2653.5,3.2078]
[1739198774106,4.36130692,2654.2,2653.5,3.2078]
[1739198774808,0.00565643,2654.1,2653.5,3.2078]
[1739198775009,0.00565643,2654.1,2653.8,3.2078]
[1739198775504,0.6109,2655.3,2653.8,12.71859063]
[1739198775710,15.44254756,2655.4,2654.9,3.2078]
[1739198776006,4.35110874,2655.3,2654.6,3.2078]
[1739198776708,0.00565643,2655.2,2654.7,0.00565643]
[1739198776906,0.00565643,2655.2,2654.9,3.2078]
[1739198777107,3.2078,2656.5,2655.2,0.75303]
[1739198777313,1.1672,2657.3,2655.0,1.994]
[1739198777314,3.2078,2657.0,2655.9,3.2078]
[1739198777514,4.23637417,2656.2,2655.9,3.2078]
[1739198777811,14.36782802,2656.8,2655.9,3.2078]
[1739198778207,0.00564578,2656.6,2656.1,0.00564578]
[1739198778611,7.28860926,2656.5,2656.1,0.00564578]
[1739198778809,1.7302,2656.4,2655.6,3.2078]
[1739198779206,3.2078,2656.2,2655.6,3.2078]
[1739198779413,4.08080926,2656.3,2655.6,3.2078]
[1739198779614,3.95100887,2656.1,2655.6,3.2078]
[1739198779912,7.15880887,2656.2,2654.9,3.2078]
[1739198780111,3.2078,2656.0,2654.7,8.71959063]
[1739198780313,3.2078,2656.0,2655.6,0.00564578]
[1739198780509,3.92134399,2655.9,2655.6,0.00564578]
[1739198781015,3.92134399,2656.2,2655.6,3.21344578]
[1739198781216,1.7302,2656.4,2655.6,3.21344578]
[1739198781517,4.04507163,2656.1,2655.6,0.00564578]
[1739198781709,3.2078,2655.9,2655.6,0.00564578]
[1739198781910,4.04507163,2656.3,2655.6,0.00564578]
[1739198781911,3.2078,2656.3,2655.6,0.00564578]
[1739198782113,3.2078,2655.7,2655.6,0.00564578]
[1739198782309,3.2078,2655.8,2654.6,3.2078]
[1739198782511,3.2078,2655.0,2654.1,3.2078]
[1739198783018,4.53502903,2654.9,2654.1,3.2078]
[1739198783517,0.00564578,2654.8,2654.2,0.00564578]
[1739198784010,3.93094791,2654.7,2654.2,0.00564578]
[1739198784405,0.00564578,2654.8,2654.4,3.2078]
[1739198784612,0.00564578,2654.8,2654.2,0.00564578]
[1739198784613,0.00564578,2654.8,2654.7,7.47178063]
[1739198785014,0.00564578,2654.8,2654.7,13.47178063]
[1739198785214,0.00564578,2654.8,2654.7,53.51859063]
[1739198785417,0.00564578,2654.8,2654.4,3.2078]
[1739198785615,0.00564578,2654.8,2654.2,0.00564578]
[1739198785616,7.42859693,2654.8,2654.2,0.00564578]
[1739198785811,4.22079693,2654.8,2654.2,0.00564578]
[1739198786213,4.22079693,2654.8,2654.4,3.2078]
[1739198786417,0.00564578,2654.8,2654.4,3.2078]
[1739198788417,0.00564578,2654.8,2654.7,3.2078]
[1739198788619,0.00564578,2654.8,2654.4,3.2078]
[1739198789321,0.00564578,2654.8,2654.7,3.2078]
[1739198789618,0.00564578,2654.8,2654.7,7.47185063]
[1739198789820,0.00564578,2654.8,2654.7,12.71859063]
[1739198790115,0.00564578,2654.8,2654.7,47.51859063]
[1739198790514,0.00564578,2654.8,2654.7,53.51859063]
[1739198790909,0.00564578,2654.8,2654.7,54.27185063]
[1739198791116,0.5598,2655.7,2654.7,53.51859063]
[1739198791321,0.5598,2655.7,2655.0,3.2078]
[1739198791823,7.28094858,2655.6,2654.5,1.999]
[1739198792117,3.2078,2655.3,2654.4,3.2078]
[1739198792319,3.2078,2655.0,2654.4,3.2078]
[1739198792620,4.24451216,2654.9,2654.4,3.2078]
[1739198792922,3.2078,2654.7,2654.2,0.00564578]
[1739198793223,1.7859,2654.9,2654.2,0.00564578]
[1739198793421,3.90000169,2654.6,2654.2,0.00564578]
[1739198793920,3.2078,2654.7,2654.2,0.00564578]
[1739198794317,4.21679423,2654.6,2654.2,0.00564578]
[1739198794517,3.2078,2654.4,2653.3,3.2078]
[1739198794725,7.42459423,2654.6,2653.3,3.2078]
[1739198794912,7.31640283,2654.3,2653.3,3.2078]
[1739198795318,3.2078,2654.3,2653.3,3.2078]
[1739198795719,3.2078,2653.9,2653.5,0.00564578]
[1739198797017,0.00564578,2654.0,2653.5,0.00564578]
[1739198797018,3.2078,2653.6,2653.5,0.00564578]
[1739198797226,3.2078,2653.6,2652.7,8.72059063]
[1739198797421,7.20312038,2653.6,2652.7,8.72059063]
[1739198797624,3.99532038,2653.6,2653.0,3.2078]
[1739198797819,3.2078,2653.9,2653.0,3.2078]
[1739198798120,4.17430152,2653.8,2653.0,3.2078]
[1739198798321,4.17430152,2653.8,2652.8,44.0078]
[1739198798525,3.2078,2653.6,2653.2,0.00564578]
[1739198799027,0.60994578,2654.0,2653.2,0.00564578]
[1739198799028,3.98776036,2653.5,2653.2,0.00564578]
[1739198799523,3.2078,2653.6,2653.2,0.00564578]
[1739198799729,3.2078,2653.3,2653.2,0.00564578]
[1739198799928,3.2078,2653.3,2652.5,3.2078]
[1739198800227,0.5864,2653.2,2652.5,3.2078]
[1739198800429,0.5857,2653.1,2652.5,3.2078]
[1739198800625,4.76352476,2653.1,2652.5,3.2078]
[1739198800822,4.76352476,2653.1,2651.9,3.51079063]
[1739198800823,3.2078,2652.9,2651.9,6.71859063]
[1739198801121,3.2078,2652.9,2652.5,0.00564578]
[1739198801321,0.5857,2653.1,2652.5,0.00564578]
[1739198801532,0.00564578,2652.7,2652.5,0.00564578]
[1739198802225,3.21344578,2652.7,2652.5,0.00564578]
[1739198803026,3.9394701,2652.6,2651.9,3.2078]
[1739198803321,3.2078,2652.4,2651.5,3.51079063]
[1739198803521,3.9394701,2652.6,2651.5,3.51079063]
[1739198803728,3.2078,2652.4,2651.5,3.51079063]
[1739198803933,3.2078,2652.4,2651.3,3.2078]
[1739198804131,4.81223718,2652.3,2651.1,5.52779063]
[1739198804427,0.5738,2652.2,2651.1,5.52779063]
[1739198804721,0.5738,2652.2,2651.3,3.2078]
[1739198804921,3.95302231,2652.1,2651.3,3.2078]
[1739198805323,3.95302231,2652.1,2651.4,40.8]
[1739198806028,0.5738,2652.2,2651.4,40.8]
[1739198806928,0.578,2652.3,2651.4,40.8]
[1739198807725,3.98814199,2652.2,2651.4,40.8]
[1739198807931,3.2078,2651.8,2651.4,40.8]
[1739198808133,3.2078,2651.8,2651.0,21.1448]
[1739198808329,3.2078,2651.8,2651.0,3.2078]
[1739198808330,3.98814199,2651.7,2651.0,3.2078]
[1739198808719,4.54034199,2651.7,2651.0,3.2078]
[1739198809026,5.10674199,2651.7,2651.0,3.2078]
[1739198809627,3.2078,2652.2,2651.3,3.2078]
[1739198810023,3.94858021,2652.1,2651.3,3.2078]
[1739198810829,3.94858021,2652.1,2651.1,3.51079063]
[1739198811034,3.2078,2651.9,2651.1,3.51079063]
[1739198811329,3.2078,2651.9,2650.7,3.2078]
[1739198811330,3.2078,2651.5,2650.7,3.2078]
[1739198811623,4.86772014,2651.4,2650.7,44.0078]
[1739198811824,4.87337678,2651.4,2650.7,44.0078]
[1739198812028,0.56845664,2651.4,2650.7,47.51859063]
[1739198812629,0.56845664,2651.4,2650.7,48.27297063]
[1739198812828,0.56845664,2651.4,2650.7,47.51859063]
[1739198813535,3.2078,2651.2,2650.7,40.8]
[1739198813723,3.2078,2651.2,2650.3,3.2078]
[1739198814032,4.07589697,2651.1,2650.3,3.2078]
[1739198814232,4.07589697,2651.1,2650.3,44.0078]
[1739198814430,3.2078,2651.2,2650.3,47.51859063]
[1739198814628,3.2078,2651.2,2650.3,48.27309063]
[1739198814830,3.2078,2651.2,2650.3,47.51859063]
[1739198815225,3.2078,2651.2,2650.3,48.27309063]
[1739198815627,3.2078,2651.2,2650.3,47.51859063]
[1739198815832,3.2078,2651.2,2650.7,0.7544]
[1739198816032,3.2078,2651.2,2650.7,0.75439]
[1739198816229,3.2078,2651.2,2650.3,47.51859063]
[1739198816230,4.27352903,2651.1,2650.3,47.51859063]
[1739198816431,4.27352903,2651.1,2650.3,44.0078]
[1739198817741,3.2078,2651.0,2650.3,40.8]
[1739198818234,4.28289143,2650.9,2650.0,3.2078]
[1739198818833,4.28289143,2650.9,2650.1,40.8]
[1739198819229,4.28289143,2650.9,2650.3,6.71859063]
[1739198819433,1.1315,2651.3,2650.6,3.2078]
[1739198819836,1.1315,2651.3,2650.3,6.71859063]
[1739198820042,4.27149307,2651.2,2650.3,6.71859063]
[1739198820240,1.1315,2651.3,2650.6,3.2078]
[1739198820743,1.88574,2651.3,2650.3,3.2078]
[1739198820944,3.2078,2651.0,2650.1,40.8]
[1739198821437,4.15425585,2650.9,2650.1,40.8]
[1739198822633,4.15425585,2650.9,2650.5,3.2078]
[1739198822942,3.2078,2651.2,2650.1,44.0078]
[1739198823138,3.2078,2650.9,2650.1,3.2078]
[1739198823444,3.94901211,2650.8,2650.1,3.2078]
[1739198823841,3.94901211,2650.8,2649.5,3.51079063]
[1739198823842,3.2078,2650.6,2649.5,3.51079063]
[1739198824040,3.94901211,2650.8,2649.4,5.1958]
[1739198824041,3.2078,2650.3,2649.4,5.1958]
[1739198824231,0.6062,2650.5,2649.1,7.19739063]
[1739198824232,8.52472376,2650.5,2649.1,7.19739063]
[1739198824544,3.2078,2649.8,2649.1,3.2078]
[1739198824936,3.96715552,2649.7,2649.1,3.2078]
[1739198825542,3.2078,2649.8,2649.1,3.2078]
[1739198825937,3.2078,2649.8,2649.1,3.3355]
[1739198826342,3.2078,2649.8,2649.1,3.2078]
[1739198826842,4.09946474,2649.7,2649.1,3.2078]
[1739198827436,0.00565664,2650.2,2649.5,0.75474]
[1739198827732,0.00565664,2650.2,2649.7,3.2078]
[1739198828231,0.00565664,2650.2,2649.4,1.99]
[1739198828232,0.00565664,2650.2,2649.6,3.2078]
[1739198828846,7.50258912,2650.1,2649.4,1.99]
[1739198829640,4.29478912,2650.1,2649.4,1.99]
[1739198829842,3.2078,2649.8,2649.0,5.1958]
[1739198830247,5.16665822,2649.7,2649.0,5.1958]
[1739198831535,3.2078,2649.5,2648.6,3.8148]
[1739198831742,3.2078,2649.5,2648.6,5.7978]
[1739198831938,3.2078,2649.5,2648.6,3.6871]
[1739198832743,0.5819,2649.6,2648.6,4.44207]
[1739198833036,4.20687679,2649.5,2648.6,3.6871]
[1739198833739,7.41467679,2649.5,2648.6,3.6871]
[1739198834047,7.41467679,2649.5,2648.6,3.2078]
[1739198834234,7.41467679,2649.5,2648.7,40.8]
[1739198834947,7.41467679,2649.5,2648.6,3.2078]
[1739198835339,3.2078,2649.2,2648.6,3.2078]
[1739198835645,3.2078,2648.8,2648.1,17.96]
[1739198835836,3.2078,2648.8,2648.0,40.8]
[1739198836037,3.2078,2648.5,2648.0,40.8]
[1739198836247,3.2078,2648.5,2648.0,3.2078]
[1739198836547,3.2078,2648.5,2647.7,5.1828]
[1739198836736,1.16355664,2648.7,2647.7,5.1828]
[1739198837048,4.18450599,2648.6,2647.7,5.1828]
[1739198837344,3.2078,2648.4,2647.7,3.2078]
[1739198837747,4.05312548,2648.3,2647.7,3.2078]
[1739198838444,0.6056,2648.5,2647.7,3.2078]
[1739198838848,7.53915998,2648.4,2647.7,3.2078]
[1739198840238,4.33135998,2648.4,2647.9,0.75518]
[1739198840447,1.16355664,2648.7,2648.0,3.2078]
[1739198840944,7.58634944,2648.6,2647.5,3.2078]
[1739198841140,3.2078,2648.3,2647.5,3.2078]
[1739198841341,7.58634944,2648.6,2647.8,3.2078]
[1739198841542,4.37854944,2648.2,2647.8,3.2078]
[1739198841840,1.16355664,2648.7,2647.8,3.2078]
[1739198841841,4.14071647,2648.5,2647.8,3.2078]
[1739198842041,4.14071647,2648.6,2647.8,3.2078]
[1739198842241,1.16355664,2648.7,2647.8,3.2078]
[1739198842547,4.14071647,2648.6,2647.8,3.2078]
[1739198843137,4.14071647,2648.6,2647.9,0.75519]
[1739198843345,1.16355664,2648.7,2648.1,3.2078]
[1739198843646,0.00565664,2648.7,2648.1,3.2078]
[1739198843948,4.13153023,2648.6,2647.8,3.2078]
[1739198844544,3.2078,2648.4,2647.8,3.2078]
[1739198844743,4.13153023,2648.6,2647.8,3.2078]
[1739198844938,4.11322976,2648.3,2647.8,3.2078]
[1739198845147,4.11322976,2648.6,2647.8,3.2078]
[1739198845546,0.00565664,2648.7,2647.8,3.2078]
[1739198845747,4.02798947,2648.6,2647.8,3.2078]
[1739198846443,3.2078,2648.5,2647.8,3.2078]
[1739198846641,4.02798947,2648.6,2647.8,3.2078]
[1739198846842,4.38010493,2648.4,2647.8,3.2078]
[1739198847347,0.00565664,2648.7,2647.5,8.69459063]
[1739198847543,0.00565664,2648.7,2647.5,9.44990063]
[1739198847753,3.94225361,2648.6,2647.8,3.2078]
[1739198848143,0.00565664,2648.7,2648.1,3.2078]
[1739198848346,3.2078,2649.4,2648.5,3.2078]
[1739198848642,0.75461,2650.0,2648.8,3.2078]
[1739198848643,3.2078,2649.8,2648.8,3.2078]
[1739198848847,3.2078,2649.8,2649.1,3.2078]
[1739198849045,4.23287683,2649.7,2649.1,3.2078]
[1739198849446,1.7719,2650.0,2649.2,3.2078]
[1739198849649,0.00565664,2649.7,2649.2,3.2078]
[1739198850153,3.96974039,2649.6,2649.1,0.00565664]
[1739198850451,7.17754039,2649.6,2649.1,0.00565664]
[1739198850651,0.00565664,2649.7,2649.1,3.21345664]
[1739198852452,0.00565664,2649.7,2649.1,0.00565664]
[1739198852650,0.00565664,2649.7,2649.1,3.21345664]
[1739198853056,3.21345664,2649.7,2649.1,0.00565664]
[1739198853260,4.36238508,2649.6,2649.1,0.00565664]
[1739198854165,3.2078,2649.3,2649.1,0.00565664]
[1739198854465,3.2078,2649.3,2648.5,3.688]
[1739198854466,1.1543,2649.2,2648.5,3.2078]
[1739198854660,3.2078,2649.0,2648.5,3.2078]
[1739198854861,5.3250252,2649.2,2648.5,3.2078]
[1739198855162,3.2078,2648.7,2647.8,3.2078]
[1739198855365,3.2078,2648.3,2647.5,3.2078]
[1739198855562,0.5722,2648.2,2647.5,3.2078]
[1739198855758,5.18590752,2648.2,2647.5,3.2078]
[1739198856162,0.00565664,2648.1,2647.5,3.2078]
[1739198856669,4.05550752,2648.0,2647.5,3.2078]
[1739198856862,3.2078,2647.6,2646.4,3.8155]
[1739198857056,3.2078,2647.9,2646.4,3.8155]
[1739198857263,3.9905822,2647.5,2646.4,3.6873]
[1739198857464,3.2078,2647.5,2646.5,40.8]
[1739198857665,7.7810822,2647.8,2646.7,3.2078]
[1739198857872,3.98616201,2647.4,2646.7,3.2078]
[1739198858165,3.7905,2647.8,2646.2,0.31451726]
[1739198858166,3.2078,2647.0,2646.2,0.31451726]
[1739198858366,3.51079063,2647.6,2645.6,3.2078]
[1739198858367,3.2078,2646.9,2645.6,3.2078]
[1739198858563,7.19396201,2646.9,2645.7,40.8]
[1739198858763,3.2078,2646.9,2645.7,40.8]
[1739198858963,0.00566765,2646.6,2646.2,3.2078]
[1739198859172,0.00566765,2646.6,2646.0,3.2078]
[1739198859473,0.00566765,2646.6,2646.3,3.2078]
[1739198860773,4.10595187,2646.5,2646.3,3.2078]
[1739198861369,0.00566765,2646.6,2646.2,3.2078]
[1739198861765,3.2078,2646.3,2645.7,40.8]
[1739198861964,3.2078,2645.9,2645.0,3.336]
[1739198862373,4.32653979,2645.8,2645.0,3.64717388]
[1739198862574,3.2078,2646.2,2645.0,5.66017388]
[1739198862777,3.2078,2646.0,2645.0,5.66017388]
[1739198863074,3.95759179,2645.9,2645.3,3.2078]
[1739198863374,3.2078,2646.3,2645.3,3.2078]
[1739198864072,4.14666397,2646.2,2645.1,2.009]
[1739198864474,4.14666397,2646.2,2645.3,3.2078]
[1739198865064,7.6574546,2646.2,2645.6,0.00815552]
[1739198865269,7.6574546,2646.2,2645.0,0.31117388]
[1739198865270,3.2078,2645.7,2645.0,0.31117388]
[1739198865465,3.2078,2645.2,2644.3,3.2078]
[1739198865771,4.02384072,2645.1,2644.4,0.31961186]
[1739198865972,4.02384072,2645.1,2644.2,6.71859063]
[1739198866169,0.593,2645.6,2644.6,3.2078]
[1739198866476,0.00566765,2645.0,2644.9,3.2078]
[1739198866969,0.00566765,2645.0,2644.9,9.2078]
[1739198867167,0.00566765,2645.0,2644.9,3.2078]
[1739198867374,0.00566765,2645.0,2644.9,44.0078]
[1739198867576,0.00566765,2645.0,2644.9,40.8]
[1739198867980,0.00566765,2645.0,2644.3,0.48]
[1739198868277,4.21037288,2645.0,2644.2,3.2078]
[1739198868580,3.2078,2644.8,2643.8,0.30681855]
[1739198868870,3.2078,2644.8,2643.6,5.2268]
[1739198868871,3.2078,2644.8,2643.6,3.2078]
[1739198869072,4.66931306,2644.7,2643.6,3.2078]
[1739198869268,4.66931306,2644.7,2643.9,3.2078]
[1739198869473,3.2078,2644.3,2643.4,40.8]
[1739198869675,4.66931306,2644.7,2641.6,14.1143173]
[1739198869676,0.75649,2643.4,2641.6,14.1143173]
[1739198869876,4.26748063,2642.7,2641.8,0.07570595]
[1739198870175,1.1875,2643.3,2642.3,4.97101269]
[1739198870176,4.20422491,2642.6,2642.3,4.97101269]
[1739198870476,3.2078,2642.4,2641.8,0.07570595]
[1739198870677,3.2078,2641.9,2641.7,11.23926617]
[1739198871179,3.2078,2641.9,2640.9,11.2636574]
[1739198871180,4.20422491,2641.8,2640.9,11.2636574]
[1739198871471,4.20422491,2641.8,2641.2,3.2078]
[1739198871671,1.1812,2642.2,2641.2,3.2078]
[1739198871875,3.95196971,2641.8,2641.2,3.2078]
[1739198872171,7.15976971,2642.1,2641.1,3.2078]
[1739198872373,3.2078,2642.0,2641.0,3.2078]
[1739198872565,1.1812,2642.2,2641.3,3.2078]
[1739198872766,4.02521431,2642.0,2641.3,3.2078]
[1739198872971,1.1812,2642.2,2641.6,3.2078]
[1739198873165,0.00566765,2642.5,2641.3,3.2078]
[1739198873371,4.02521431,2642.1,2641.9,3.2078]
[1739198873681,3.51079063,2643.4,2641.9,3.2078]
[1739198873866,0.31363466,2644.1,2641.6,3.2078]
[1739198873867,3.2078,2642.5,2641.6,3.2078]
[1739198874175,3.51079063,2642.9,2641.0,5.00265076]
[1739198874176,3.2078,2642.2,2641.2,3.2078]
[1739198874472,4.2695429,2642.1,2641.5,3.2078]
[1739198874869,0.00567848,2642.0,2641.5,3.2078]
[1739198875269,0.00567848,2642.0,2641.9,40.8]
[1739198875469,0.00567848,2642.0,2641.4,0.00567848]
[1739198875669,4.15906194,2642.0,2641.4,3.21347848]
[1739198876674,3.8194,2641.9,2641.4,3.21347848]
[1739198877181,4.05433511,2641.8,2641.4,3.21347848]
[1739198877376,4.05433511,2641.8,2640.9,0.02439123]
[1739198877679,3.2078,2641.0,2640.2,3.2078]
[1739198878078,4.08969767,2640.9,2640.2,3.2078]
[1739198878777,3.2078,2641.8,2640.8,3.2078]
[1739198879079,3.2078,2641.8,2641.2,44.0078]
[1739198879080,4.28229967,2641.5,2641.2,44.0078]
[1739198879375,3.2078,2641.5,2641.2,40.8]
[1739198879579,3.2078,2641.5,2640.4,3.2078]
[1739198879871,4.28229967,2641.4,2640.4,3.2078]
[1739198880077,4.28229967,2641.4,2640.5,40.8]
[1739198880278,3.2078,2641.2,2640.4,3.2078]
[1739198880575,3.51646911,2641.6,2640.7,3.2078]
[1739198880576,3.21347848,2641.6,2640.7,3.2078]
[1739198880781,4.12799599,2641.1,2640.6,3.51079063]
[1739198880976,0.00567848,2641.6,2641.0,3.2078]
[1739198881179,0.00567848,2641.6,2641.4,3.2078]
[1739198881679,0.00567848,2641.6,2641.1,3.2078]
[1739198881870,0.00567848,2641.6,2641.5,3.2078]
[1739198883183,4.2072913,2641.6,2641.5,3.2078]
[1739198883372,4.2072913,2641.6,2641.2,3.2078]
[1739198884279,0.00567848,2641.6,2641.5,3.2078]
[1739198884574,0.553,2642.8,2641.5,5.5458]
[1739198884878,0.01377,2642.9,2642.2,3.2078]
[1739198885082,4.24314647,2642.7,2642.2,3.2078]
[1739198885281,4.24314647,2642.8,2642.5,3.2078]
[1739198885579,0.01377,2642.9,2642.5,3.2078]
[1739198885778,0.01944848,2642.9,2642.5,3.2078]
[1739198885973,4.0437776,2642.8,2642.4,0.00567848]
[1739198886979,3.2078,2642.6,2642.4,0.00567848]
[1739198887274,0.5863,2642.5,2641.5,3.2078]
[1739198887481,3.2078,2642.4,2641.5,3.2078]
[1739198887873,4.12865626,2642.3,2641.2,3.2078]
[1739198888480,3.2078,2642.1,2641.2,3.2078]
[1739198888874,4.20916529,2642.0,2641.2,3.2078]
[1739198889077,4.20916529,2642.0,2641.5,3.2078]
[1739198889374,3.2078,2641.9,2641.1,44.0078]
[1739198889579,3.2078,2641.9,2641.1,3.2078]
[1739198889775,4.20916529,2641.8,2641.1,3.2078]
[1739198889981,4.20916529,2641.8,2641.4,3.2078]
[1739198890372,4.25807689,2642.2,2641.4,3.2078]
[1739198890683,0.5867,2642.3,2641.4,3.96485]
[1739198890878,4.36728792,2642.2,2641.4,44.0078]
[1739198891079,4.36728792,2642.2,2642.0,3.2078]
[1739198891277,0.5863,2642.5,2642.0,3.2078]
[1739198891679,4.36728792,2642.4,2642.0,3.2078]
[1739198892074,4.31012062,2642.5,2642.3,3.2078]
[1739198892577,3.2078,2643.0,2642.3,3.2078]
[1739198892780,3.2078,2643.0,2642.4,3.2078]
[1739198892981,0.5867,2643.1,2642.4,3.2078]
[1739198892982,4.37102345,2642.7,2642.4,3.2078]
[1739198893174,4.37102345,2642.8,2642.4,3.2078]
[1739198893383,1.1894,2643.1,2642.4,3.2078]
[1739198893588,1.1894,2643.1,2641.6,3.2078]
[1739198893589,3.2078,2642.6,2641.6,3.2078]
[1739198893779,3.2078,2642.3,2641.6,3.2078]
[1739198893974,4.35374758,2642.5,2641.9,3.2078]
[1739198894278,4.35374758,2642.7,2641.9,3.2078]
[1739198894683,4.35374758,2642.8,2641.9,3.2078]
[1739198894981,0.01944848,2642.9,2642.3,3.2078]
[1739198895181,4.2198384,2642.8,2642.3,3.2078]
[1739198895381,4.2198384,2642.8,2642.0,3.2078]
[1739198896179,0.01944848,2642.9,2642.6,3.2078]
[1739198897288,0.01944848,2642.9,2642.7,40.8]
[1739198898786,0.01944848,2642.9,2642.6,3.2078]
[1739198899690,0.01944848,2642.9,2642.6,6.71859063]
[1739198899876,0.5999,2643.9,2642.6,6.71859063]
[1739198899877,0.5999,2643.9,2642.8,0.75666]
[1739198900081,3.8077,2643.9,2643.1,3.2078]
[1739198900382,3.97246289,2643.6,2643.1,3.2078]
[1739198900687,3.2078,2643.6,2642.6,3.2078]
[1739198901081,3.2078,2643.3,2642.6,3.2078]
[1739198901282,3.2078,2643.3,2642.7,3.2078]
[1739198901483,4.16562783,2643.2,2642.7,3.2078]
[1739198901683,4.16562783,2643.2,2643.1,3.2078]
[1739198901989,0.00567848,2643.4,2643.1,3.2078]
[1739198902287,0.00567848,2643.4,2643.2,40.8]
[1739198902688,0.5696,2644.1,2643.2,41.55652]
[1739198902992,3.2078,2644.6,2644.0,3.2078]
[1739198903380,4.13222466,2644.5,2644.0,3.2078]
[1739198903585,3.2078,2644.6,2644.0,3.2078]
[1739198903990,3.21347848,2644.6,2644.0,3.21347848]
[1739198904486,3.9783365,2644.5,2644.0,3.21347848]
[1739198904792,3.2078,2644.3,2644.0,0.00567848]
[1739198905293,4.19452594,2644.2,2644.0,3.21347848]
[1739198905482,0.00567848,2644.6,2644.0,3.21347848]
[1739198905680,4.19452594,2644.5,2644.0,3.21347848]
[1739198905993,0.00567848,2644.6,2644.0,3.21347848]
[1739198906285,4.18359251,2644.5,2644.0,3.21347848]
[1739198907889,0.00567848,2644.6,2644.0,3.21347848]
[1739198908084,0.00567848,2644.6,2644.3,3.2078]
[1739198908288,3.2078,2645.6,2644.3,3.96402]
[1739198908483,0.598,2645.8,2644.8,3.2078]
[1739198908687,4.02375794,2645.5,2644.8,3.2078]
[1739198908893,4.10744237,2645.7,2644.8,3.2078]
[1739198909096,3.2078,2645.6,2644.8,3.2078]
[1739198909391,4.10744237,2645.5,2644.8,3.2078]
[1739198909595,4.11312085,2645.5,2644.8,3.2078]
[1739198909891,0.00567848,2645.5,2645.1,3.2078]
[1739198910090,0.00567848,2645.5,2645.4,3.2078]
[1739198912390,0.00567848,2645.5,2645.2,3.2078]
[1739198912585,4.17836164,2645.5,2645.2,3.2078]
[1739198912985,0.00567848,2645.5,2645.2,3.2078]